[Event "*** Titled Tuesday 3|2 Blitz (Late)"]
[Site "Chess.com"]
[Date "2016.11.01"]
[Round "4"]
[White "GMKrikor"]
[Black "cheese111"]
[Result "1-0"]
[WhiteElo "2530"]
[BlackElo "2254"]
[TimeControl "180+2"]
[EndTime "17:52:26 PDT"]
[Termination "GMKrikor won by checkmate"]

1. e4 {[%clk 0:03:02]} 1... d5 {[%clk 0:03:00.5]} 2. exd5 {[%clk 0:03:02.7]}
2... Nf6 {[%clk 0:03:01.9]} 3. d4 {[%clk 0:03:03.5]} 3... Bg4 {[%clk 0:03:00.5]}
4. Be2 {[%clk 0:03:04.9]} 4... Bxe2 {[%clk 0:03:01.1]} 5. Qxe2 {[%clk
0:03:06.8]} 5... Qxd5 {[%clk 0:03:01.2]} 6. Nf3 {[%clk 0:03:08.2]} 6... e6
{[%clk 0:03:00.5]} 7. c4 {[%clk 0:03:09.3]} 7... Qh5 {[%clk 0:03:00.8]} 8. Nc3
{[%clk 0:03:01.2]} 8... Be7 {[%clk 0:02:52.5]} 9. Bf4 {[%clk 0:02:58.4]} 9... c6
{[%clk 0:02:30.2]} 10. O-O-O {[%clk 0:02:48.8]} 10... O-O {[%clk 0:02:13.2]} 11.
h3 {[%clk 0:02:47.2]} 11... Qa5 {[%clk 0:02:02.4]} 12. Kb1 {[%clk 0:02:46.6]}
12... Nbd7 {[%clk 0:01:46.9]} 13. g4 {[%clk 0:02:42.6]} 13... Nb6 {[%clk
0:01:35.1]} 14. Ne5 {[%clk 0:02:39.8]} 14... Bb4 {[%clk 0:01:27.5]} 15. Bd2
{[%clk 0:02:34.3]} 15... Bxc3 {[%clk 0:01:13.6]} 16. Bxc3 {[%clk 0:02:35.1]}
16... Qa6 {[%clk 0:01:14.7]} 17. g5 {[%clk 0:02:27.7]} 17... Nfd7 {[%clk
0:01:15.4]} 18. b3 {[%clk 0:02:24.3]} 18... Nxe5 {[%clk 0:00:25.6]} 19. Qxe5
{[%clk 0:02:11.6]} 19... Nd7 {[%clk 0:00:26.3]} 20. Qe4 {[%clk 0:02:01.2]} 20...
Rfd8 {[%clk 0:00:19.9]} 21. h4 {[%clk 0:02:01.2]} 21... c5 {[%clk 0:00:16.2]}
22. d5 {[%clk 0:02:00]} 22... exd5 {[%clk 0:00:17.2]} 23. Rxd5 {[%clk
0:01:59.9]} 23... Nf8 {[%clk 0:00:08.4]} 24. h5 {[%clk 0:02:00.3]} 24... Rxd5
{[%clk 0:00:07.1]} 25. Qxd5 {[%clk 0:02:01.7]} 25... Qe6 {[%clk 0:00:04.7]} 26.
Rd1 {[%clk 0:01:44.4]} 26... Re8 {[%clk 0:00:03.8]} 27. h6 {[%clk 0:01:25.7]}
27... Qg6+ {[%clk 0:00:02.5]} 28. Kc1 {[%clk 0:01:00.2]} 28... Re2 {[%clk
0:00:02.5]} 29. Bd2 {[%clk 0:01:01.7]} 29... gxh6 {[%clk 0:00:02.7]} 30. gxh6
{[%clk 0:01:00.4]} 30... Qf6 {[%clk 0:00:03.9]} 31. Kc2 {[%clk 0:00:48.8]} 31...
Ne6 {[%clk 0:00:02.7]} 32. Rg1+ {[%clk 0:00:31.8]} 32... Kf8 {[%clk 0:00:03.6]}
33. Qd6+ {[%clk 0:00:29.2]} 33... Ke8 {[%clk 0:00:03.1]} 34. Rg8+ {[%clk
0:00:29.7]} 34... Nf8 {[%clk 0:00:02]} 35. Rxf8# {[%clk 0:00:31.1]} 1-0

[Event "*** Titled Tuesday 3|2 Blitz (Late)"]
[Site "Chess.com"]
[Date "2016.11.01"]
[Round "4"]
[White "Fandorine"]
[Black "Zaven_ChessMood"]
[Result "0-1"]
[WhiteElo "2651"]
[BlackElo "2823"]
[TimeControl "180+2"]
[EndTime "17:52:29 PDT"]
[Termination "Zaven_ChessMood won on time"]

1. d4 {[%clk 0:03:02]} 1... Nf6 {[%clk 0:03:00.7]} 2. Bf4 {[%clk 0:03:02.2]}
2... g6 {[%clk 0:03:00.1]} 3. Nc3 {[%clk 0:02:56.2]} 3... d6 {[%clk 0:02:59.2]}
4. Qd2 {[%clk 0:02:55.6]} 4... Bg7 {[%clk 0:03:00.4]} 5. Bh6 {[%clk 0:02:56.4]}
5... Bxh6 {[%clk 0:02:59.4]} 6. Qxh6 {[%clk 0:02:58.3]} 6... c6 {[%clk
0:03:00.3]} 7. O-O-O {[%clk 0:02:56.3]} 7... Qa5 {[%clk 0:02:59]} 8. e4 {[%clk
0:02:41.4]} 8... Be6 {[%clk 0:02:54.3]} 9. Kb1 {[%clk 0:02:15.2]} 9... Na6
{[%clk 0:02:52.2]} 10. Nf3 {[%clk 0:02:03.5]} 10... Nc7 {[%clk 0:02:46.9]} 11.
Ng5 {[%clk 0:01:41.1]} 11... b5 {[%clk 0:02:44.2]} 12. Nxe6 {[%clk 0:01:37.2]}
12... Nxe6 {[%clk 0:02:44.5]} 13. f3 {[%clk 0:01:38.7]} 13... b4 {[%clk
0:02:43.1]} 14. Ne2 {[%clk 0:01:39.4]} 14... c5 {[%clk 0:02:40.2]} 15. dxc5
{[%clk 0:01:34.9]} 15... Qxc5 {[%clk 0:02:34.9]} 16. Nf4 {[%clk 0:01:23.5]}
16... Nxf4 {[%clk 0:02:30.3]} 17. Qxf4 {[%clk 0:01:25.4]} 17... O-O {[%clk
0:02:26.8]} 18. h4 {[%clk 0:01:22.9]} 18... Rfc8 {[%clk 0:02:27.2]} 19. Bd3
{[%clk 0:01:21.1]} 19... a5 {[%clk 0:02:28]} 20. h5 {[%clk 0:01:20.1]} 20... a4
{[%clk 0:01:58.9]} 21. hxg6 {[%clk 0:01:17.2]} 21... fxg6 {[%clk 0:01:58.6]} 22.
g4 {[%clk 0:00:58.7]} 22... a3 {[%clk 0:01:54.3]} 23. b3 {[%clk 0:00:33.6]}
23... Qc3 {[%clk 0:01:52]} 24. Qc1 {[%clk 0:00:33.5]} 24... Ra5 {[%clk
0:01:51.2]} 25. g5 {[%clk 0:00:16.1]} 25... Rxg5 {[%clk 0:01:39.7]} 26. Bc4+
{[%clk 0:00:16.3]} 26... Rxc4 {[%clk 0:01:38.4]} 27. bxc4 {[%clk 0:00:18.2]}
27... Rg2 {[%clk 0:01:35.9]} 28. Rd3 {[%clk 0:00:15.9]} 28... Qxc4 {[%clk
0:01:35.8]} 29. Rg1 {[%clk 0:00:04.5]} 29... Rf2 {[%clk 0:01:30.9]} 30. Rf1
{[%clk 0:00:05.5]} 30... Rh2 {[%clk 0:01:27.3]} 31. Rh1 {[%clk 0:00:05.9]} 31...
Rxh1 {[%clk 0:01:25.9]} 32. Qxh1 {[%clk 0:00:07.8]} 32... Nd7 {[%clk 0:01:16.6]}
33. Qe1 {[%clk 0:00:04.3]} 33... Nc5 {[%clk 0:01:14.1]} 34. Rd1 {[%clk
0:00:02.7]} 34... Na4 {[%clk 0:01:14.2]} 35. Rd3 {[%clk 0:00:04]} 35... Nc3+
{[%clk 0:01:14.2]} 36. Kc1 {[%clk 0:00:05.9]} 36... Nxa2+ {[%clk 0:01:14.1]} 37.
Kd2 {[%clk 0:00:06.5]} 37... Nc3 {[%clk 0:01:13.8]} 38. Qg1 {[%clk 0:00:06.2]}
38... a2 {[%clk 0:01:12.8]} 39. Qa7 {[%clk 0:00:06.7]} 39... Kf7 {[%clk
0:01:09.5]} 40. Qa8 {[%clk 0:00:04.7]} 40... Nb1+ {[%clk 0:01:05]} 41. Ke3
{[%clk 0:00:02.6]} 41... Na3 {[%clk 0:01:04.9]} 0-1

[Event "*** Titled Tuesday 3|2 Blitz (Late)"]
[Site "Chess.com"]
[Date "2016.11.01"]
[Round "4"]
[White "platy3"]
[Black "pKiLz5Rn9b"]
[Result "1-0"]
[WhiteElo "2686"]
[BlackElo "2494"]
[TimeControl "180+2"]
[EndTime "17:52:40 PDT"]
[Termination "platy3 won by resignation"]

1. e4 {[%clk 0:03:02]} 1... e6 {[%clk 0:02:59]} 2. d4 {[%clk 0:03:02.1]} 2... d5
{[%clk 0:03:00.2]} 3. Nc3 {[%clk 0:03:03.8]} 3... dxe4 {[%clk 0:02:59.9]} 4.
Nxe4 {[%clk 0:03:04.6]} 4... Nd7 {[%clk 0:03:01.6]} 5. Nf3 {[%clk 0:03:05.5]}
5... Ngf6 {[%clk 0:03:03]} 6. Nxf6+ {[%clk 0:03:07]} 6... Nxf6 {[%clk
0:03:04.6]} 7. c3 {[%clk 0:03:08.7]} 7... c5 {[%clk 0:03:05.3]} 8. Ne5 {[%clk
0:03:09.8]} 8... a6 {[%clk 0:03:05.1]} 9. Be3 {[%clk 0:03:09.6]} 9... Qc7 {[%clk
0:03:00.6]} 10. Qa4+ {[%clk 0:03:07.6]} 10... Nd7 {[%clk 0:02:53.7]} 11. O-O-O
{[%clk 0:03:08.6]} 11... Ra7 {[%clk 0:02:43.2]} 12. Bb5 {[%clk 0:03:02.4]} 12...
axb5 {[%clk 0:02:14.6]} 13. Qxa7 {[%clk 0:02:52.3]} 13... cxd4 {[%clk
0:02:15.7]} 14. Nxd7 {[%clk 0:02:37.5]} 14... Bxd7 {[%clk 0:01:57.6]} 15. Qxd4
{[%clk 0:02:30.7]} 15... f6 {[%clk 0:01:50.6]} 16. Rhe1 {[%clk 0:02:24.8]} 16...
Be7 {[%clk 0:01:42.1]} 17. Qb6 {[%clk 0:02:17.9]} 17... Qc6 {[%clk 0:01:30.6]}
18. f3 {[%clk 0:02:01.9]} 18... Kf7 {[%clk 0:01:27.9]} 19. Qxc6 {[%clk
0:01:53.2]} 19... Bxc6 {[%clk 0:01:28.6]} 20. a3 {[%clk 0:01:53.9]} 20... Bd5
{[%clk 0:01:25.2]} 21. Bb6 {[%clk 0:01:52.8]} 21... Rc8 {[%clk 0:01:22.8]} 22.
Ba5 {[%clk 0:01:53.6]} 22... Bd6 {[%clk 0:01:18.3]} 23. h3 {[%clk 0:01:53.6]}
23... h5 {[%clk 0:01:15.7]} 24. Bb4 {[%clk 0:01:52.9]} 24... Bf4+ {[%clk
0:01:16.8]} 25. Kb1 {[%clk 0:01:53.2]} 25... g5 {[%clk 0:01:18.4]} 26. Rxd5
{[%clk 0:01:44]} 26... exd5 {[%clk 0:01:20.3]} 27. Re7+ {[%clk 0:01:44.9]} 27...
Kg6 {[%clk 0:01:22]} 28. Rxb7 {[%clk 0:01:46.5]} 28... d4 {[%clk 0:01:08]} 29.
cxd4 {[%clk 0:01:29.8]} 29... Rc1+ {[%clk 0:00:56.9]} 30. Ka2 {[%clk 0:01:30.8]}
30... Rd1 {[%clk 0:00:49.7]} 31. Bc3 {[%clk 0:01:24.8]} 31... Rg1 {[%clk
0:00:40.8]} 32. Rxb5 {[%clk 0:01:22.7]} 32... Rxg2 {[%clk 0:00:42.1]} 33. a4
{[%clk 0:01:24.4]} 33... Rf2 {[%clk 0:00:32.8]} 34. a5 {[%clk 0:01:24.9]} 34...
Rxf3 {[%clk 0:00:34.2]} 35. a6 {[%clk 0:01:12.7]} 35... Re3 {[%clk 0:00:35.3]}
36. d5 {[%clk 0:00:44.4]} 36... g4 {[%clk 0:00:23.5]} 37. hxg4 {[%clk
0:00:43.1]} 37... hxg4 {[%clk 0:00:25.4]} 38. Rb4 {[%clk 0:00:43.1]} 38... Kf5
{[%clk 0:00:22.3]} 39. Rxf4+ {[%clk 0:00:33.6]} 39... Kxf4 {[%clk 0:00:22.7]}
40. Bd2 {[%clk 0:00:34.9]} 40... g3 {[%clk 0:00:20.2]} 41. a7 {[%clk 0:00:36.2]}
41... g2 {[%clk 0:00:21.7]} 42. Bxe3+ {[%clk 0:00:37.6]} 1-0

[Event "*** Titled Tuesday 3|2 Blitz (Late)"]
[Site "Chess.com"]
[Date "2016.11.01"]
[Round "4"]
[White "jcgs1030"]
[Black "FearlessKing64"]
[Result "1-0"]
[WhiteElo "2249"]
[BlackElo "2159"]
[TimeControl "180+2"]
[EndTime "17:52:45 PDT"]
[Termination "jcgs1030 won by resignation"]

1. e4 {[%clk 0:03:01.9]} 1... c5 {[%clk 0:02:59.9]} 2. Nf3 {[%clk 0:03:02.3]}
2... d6 {[%clk 0:03:01.1]} 3. d4 {[%clk 0:03:01.7]} 3... cxd4 {[%clk 0:03:03]}
4. Nxd4 {[%clk 0:03:02.7]} 4... Nf6 {[%clk 0:03:04.7]} 5. Nc3 {[%clk 0:03:03.6]}
5... a6 {[%clk 0:03:06.4]} 6. Bg5 {[%clk 0:03:02.8]} 6... e6 {[%clk 0:03:06.9]}
7. f4 {[%clk 0:03:03.7]} 7... Be7 {[%clk 0:03:08.4]} 8. Qf3 {[%clk 0:03:04.1]}
8... h6 {[%clk 0:03:09.9]} 9. Bh4 {[%clk 0:03:03.4]} 9... g5 {[%clk 0:03:11.5]}
10. fxg5 {[%clk 0:03:03.4]} 10... Nfd7 {[%clk 0:03:13.1]} 11. Nxe6 {[%clk
0:03:04.6]} 11... fxe6 {[%clk 0:03:13.7]} 12. Qh5+ {[%clk 0:03:05.5]} 12... Kf8
{[%clk 0:03:15.1]} 13. Bb5 {[%clk 0:03:06.2]} 13... Kg7 {[%clk 0:03:16]} 14. O-O
{[%clk 0:03:00.4]} 14... Ne5 {[%clk 0:03:16.8]} 15. Bg3 {[%clk 0:02:59]} 15...
Ng6 {[%clk 0:03:17.5]} 16. Bd3 {[%clk 0:02:46.7]} 16... hxg5 {[%clk 0:03:13.9]}
17. Qe2 {[%clk 0:02:40]} 17... Nc6 {[%clk 0:03:03.8]} 18. Rad1 {[%clk
0:02:24.2]} 18... Nce5 {[%clk 0:03:03.1]} 19. h3 {[%clk 0:02:18.6]} 19... Bd7
{[%clk 0:02:54.8]} 20. Nb1 {[%clk 0:02:15.4]} 20... Qb6+ {[%clk 0:02:42.8]} 21.
Kh2 {[%clk 0:02:13.6]} 21... g4 {[%clk 0:02:34.3]} 22. c3 {[%clk 0:02:11.9]}
22... Raf8 {[%clk 0:02:25.1]} 23. Na3 {[%clk 0:02:08.6]} 23... Nf3+ {[%clk
0:02:17.7]} 24. gxf3 {[%clk 0:02:05.5]} 24... Rxh3+ {[%clk 0:02:16.4]} 25. Kg2
{[%clk 0:02:06.2]} 25... Rxg3+ {[%clk 0:02:13.4]} 26. Kxg3 {[%clk 0:02:03.4]}
26... Bh4+ {[%clk 0:02:13]} 27. Kh2 {[%clk 0:02:04.9]} 27... Rh8 {[%clk
0:02:03.4]} 28. fxg4 {[%clk 0:02:01.7]} 28... Bf2+ {[%clk 0:01:58.5]} 29. Kg2
{[%clk 0:01:59.2]} 29... Nf4+ {[%clk 0:01:59]} 30. Kf3 {[%clk 0:01:59.3]} 30...
Nxe2 {[%clk 0:01:59.9]} 31. Rxf2 {[%clk 0:01:56.3]} 31... Rh3+ {[%clk
0:01:50.4]} 32. Kxe2 {[%clk 0:01:55.9]} 32... Qxb2+ {[%clk 0:01:41.3]} 33. Nc2
{[%clk 0:01:54.6]} 33... Rxd3 {[%clk 0:01:42]} 34. Kxd3 {[%clk 0:01:54.4]} 34...
Bb5+ {[%clk 0:01:42.3]} 35. Kd2 {[%clk 0:01:55.4]} 35... Ba4 {[%clk 0:01:41.1]}
36. Rc1 {[%clk 0:01:54.3]} 36... Qxa2 {[%clk 0:01:38.7]} 37. Ke3 {[%clk
0:01:46.4]} 37... Bxc2 {[%clk 0:01:21.1]} 38. Rcxc2 {[%clk 0:01:45.2]} 38... Qc4
{[%clk 0:01:20.1]} 39. Kf3 {[%clk 0:01:44.7]} 39... Qd3+ {[%clk 0:01:19.8]} 40.
Kf4 {[%clk 0:01:42.2]} 40... Kg6 {[%clk 0:01:19.5]} 41. g5 {[%clk 0:01:39.5]}
41... e5+ {[%clk 0:01:18.7]} 42. Kg4 {[%clk 0:01:40.1]} 42... Qxe4+ {[%clk
0:01:19.4]} 43. Kg3 {[%clk 0:01:40.4]} 43... Kxg5 {[%clk 0:01:18.6]} 44. Rce2
{[%clk 0:01:37.6]} 44... Qd3+ {[%clk 0:01:14.7]} 45. Kh2 {[%clk 0:01:36.4]}
45... Qxc3 {[%clk 0:01:13.3]} 46. Rf8 {[%clk 0:01:35.8]} 46... e4 {[%clk
0:00:48.2]} 47. Rg2+ {[%clk 0:01:33.9]} 47... Kh6 {[%clk 0:00:49]} 48. Rfg8
{[%clk 0:01:11.5]} 48... Qe5+ {[%clk 0:00:45.9]} 49. R8g3 {[%clk 0:01:09.8]}
49... e3 {[%clk 0:00:41.7]} 50. Kh1 {[%clk 0:01:07.7]} 50... d5 {[%clk
0:00:22.6]} 51. Rh2+ {[%clk 0:01:06]} 1-0

[Event "*** Titled Tuesday 3|2 Blitz (Late)"]
[Site "Chess.com"]
[Date "2016.11.01"]
[Round "4"]
[White "pastouche06"]
[Black "Dlugy"]
[Result "1-0"]
[WhiteElo "2305"]
[BlackElo "2560"]
[TimeControl "180+2"]
[EndTime "17:52:45 PDT"]
[Termination "pastouche06 won by checkmate"]

1. d4 {[%clk 0:03:01.9]} 1... Nf6 {[%clk 0:03:00.4]} 2. c4 {[%clk 0:03:03]} 2...
g6 {[%clk 0:03:02]} 3. Nc3 {[%clk 0:03:04.3]} 3... Bg7 {[%clk 0:03:03.7]} 4. e4
{[%clk 0:03:05.6]} 4... O-O {[%clk 0:03:05.3]} 5. Be2 {[%clk 0:03:06.9]} 5... d6
{[%clk 0:03:06.8]} 6. Nf3 {[%clk 0:03:07.9]} 6... e5 {[%clk 0:03:08.4]} 7. d5
{[%clk 0:03:09.2]} 7... Na6 {[%clk 0:03:07.5]} 8. Nd2 {[%clk 0:03:05.8]} 8...
Nc5 {[%clk 0:03:06.7]} 9. h4 {[%clk 0:03:03.2]} 9... h5 {[%clk 0:02:56.1]} 10.
b4 {[%clk 0:02:53.5]} 10... Ncd7 {[%clk 0:02:55.3]} 11. a3 {[%clk 0:02:46.7]}
11... a5 {[%clk 0:02:56.2]} 12. Rb1 {[%clk 0:02:46.8]} 12... axb4 {[%clk
0:02:57.1]} 13. axb4 {[%clk 0:02:48.7]} 13... Nh7 {[%clk 0:02:54]} 14. g4 {[%clk
0:02:28]} 14... hxg4 {[%clk 0:02:53.1]} 15. Bxg4 {[%clk 0:02:29.9]} 15... Ndf6
{[%clk 0:02:52.8]} 16. Be2 {[%clk 0:02:20.7]} 16... Qd7 {[%clk 0:02:23.7]} 17.
Nf1 {[%clk 0:01:47.5]} 17... Ng4 {[%clk 0:02:22.4]} 18. h5 {[%clk 0:01:40.6]}
18... c6 {[%clk 0:01:51.8]} 19. Ng3 {[%clk 0:01:32.9]} 19... Ngf6 {[%clk
0:01:32]} 20. hxg6 {[%clk 0:01:22]} 20... fxg6 {[%clk 0:01:33.2]} 21. Bh6 {[%clk
0:01:12.2]} 21... Bxh6 {[%clk 0:01:24.4]} 22. Rxh6 {[%clk 0:01:14.1]} 22... Kg7
{[%clk 0:01:23.4]} 23. Rh1 {[%clk 0:01:11.2]} 23... cxd5 {[%clk 0:01:21.6]} 24.
Qd2 {[%clk 0:01:02.2]} 24... d4 {[%clk 0:01:20]} 25. Qh6+ {[%clk 0:00:59.8]}
25... Kg8 {[%clk 0:01:18.2]} 26. Qxg6+ {[%clk 0:00:44]} 26... Qg7 {[%clk
0:01:19]} 27. Qxg7+ {[%clk 0:00:45.1]} 27... Kxg7 {[%clk 0:01:20.2]} 28. Nb5
{[%clk 0:00:45.7]} 28... Rd8 {[%clk 0:01:11.3]} 29. Kd2 {[%clk 0:00:19.7]} 29...
Ra2+ {[%clk 0:01:10.9]} 30. Kd3 {[%clk 0:00:21.1]} 30... Kf7 {[%clk 0:00:46.9]}
31. Rbg1 {[%clk 0:00:19.7]} 31... Rb2 {[%clk 0:00:42.1]} 32. Bh5+ {[%clk
0:00:12.2]} 32... Kf8 {[%clk 0:00:34.8]} 33. Bg6 {[%clk 0:00:11.7]} 33... Ng5
{[%clk 0:00:33.5]} 34. Nf5 {[%clk 0:00:12.1]} 34... Bxf5 {[%clk 0:00:27]} 35.
Rxg5 {[%clk 0:00:10.3]} 35... Nxe4 {[%clk 0:00:24.2]} 36. Rxf5+ {[%clk
0:00:10.4]} 36... Kg7 {[%clk 0:00:24]} 37. Kxe4 {[%clk 0:00:11.5]} 37... Kxg6
{[%clk 0:00:25.1]} 38. Rf3 {[%clk 0:00:12.6]} 38... Rxb4 {[%clk 0:00:24.6]} 39.
Rg1+ {[%clk 0:00:13.5]} 39... Kh5 {[%clk 0:00:25.2]} 40. Rh3# {[%clk 0:00:15.4]}
1-0

[Event "*** Titled Tuesday 3|2 Blitz (Late)"]
[Site "Chess.com"]
[Date "2016.11.01"]
[Round "4"]
[White "Divertissement"]
[Black "Nyzhnyk_Illia"]
[Result "0-1"]
[WhiteElo "2336"]
[BlackElo "2553"]
[TimeControl "180+2"]
[EndTime "17:53:38 PDT"]
[Termination "Nyzhnyk_Illia won by checkmate"]

1. Nf3 {[%clk 0:03:01.9]} 1... Nf6 {[%clk 0:03:00.8]} 2. c4 {[%clk 0:03:02.9]}
2... g6 {[%clk 0:03:01.6]} 3. Nc3 {[%clk 0:03:04]} 3... Bg7 {[%clk 0:03:03.5]}
4. g3 {[%clk 0:03:01.5]} 4... O-O {[%clk 0:03:05.1]} 5. d4 {[%clk 0:03:02.7]}
5... d6 {[%clk 0:03:06.4]} 6. Bg2 {[%clk 0:03:04.1]} 6... Nc6 {[%clk 0:03:08.2]}
7. O-O {[%clk 0:03:05.3]} 7... Bg4 {[%clk 0:03:10]} 8. h3 {[%clk 0:02:54.1]}
8... Bxf3 {[%clk 0:03:10.2]} 9. Bxf3 {[%clk 0:02:56]} 9... Nd7 {[%clk
0:03:11.5]} 10. e3 {[%clk 0:02:44.4]} 10... e5 {[%clk 0:03:09.7]} 11. d5 {[%clk
0:02:44.2]} 11... Ne7 {[%clk 0:03:09.8]} 12. e4 {[%clk 0:02:40.2]} 12... f5
{[%clk 0:03:11.3]} 13. exf5 {[%clk 0:02:41.1]} 13... gxf5 {[%clk 0:03:12.1]} 14.
Bg2 {[%clk 0:02:40.2]} 14... Ng6 {[%clk 0:03:10.8]} 15. Qc2 {[%clk 0:02:29.2]}
15... Qf6 {[%clk 0:03:09.9]} 16. b3 {[%clk 0:02:23.2]} 16... h5 {[%clk
0:03:06.1]} 17. h4 {[%clk 0:02:17.5]} 17... e4 {[%clk 0:02:59.4]} 18. Bb2 {[%clk
0:02:17.9]} 18... Nge5 {[%clk 0:02:55.5]} 19. Nb5 {[%clk 0:02:15.1]} 19... Rfc8
{[%clk 0:02:32.2]} 20. Nd4 {[%clk 0:02:11.5]} 20... Nc5 {[%clk 0:02:28.1]} 21.
Ba3 {[%clk 0:01:49.6]} 21... Ned3 {[%clk 0:02:20.8]} 22. Bxc5 {[%clk 0:01:43.3]}
22... Nxc5 {[%clk 0:02:22.1]} 23. Rad1 {[%clk 0:01:40.7]} 23... Qg6 {[%clk
0:02:12.3]} 24. Ne2 {[%clk 0:00:35.8]} 24... Nd3 {[%clk 0:01:58.9]} 25. Rxd3
{[%clk 0:00:32.5]} 25... exd3 {[%clk 0:02:00.1]} 26. Qxd3 {[%clk 0:00:33.7]}
26... Be5 {[%clk 0:02:01.9]} 27. Bf3 {[%clk 0:00:22.9]} 27... Kg7 {[%clk
0:02:01]} 28. Kg2 {[%clk 0:00:24]} 28... Rf8 {[%clk 0:02:00.5]} 29. Ng1 {[%clk
0:00:24.3]} 29... Rae8 {[%clk 0:01:53.2]} 30. Nh3 {[%clk 0:00:25.4]} 30... f4
{[%clk 0:01:52.2]} 31. Be4 {[%clk 0:00:18.1]} 31... f3+ {[%clk 0:01:52.9]} 32.
Kh2 {[%clk 0:00:17.4]} 32... Qg4 {[%clk 0:01:53.6]} 33. Rg1 {[%clk 0:00:09.6]}
33... Rf6 {[%clk 0:01:43.3]} 34. Nf4 {[%clk 0:00:10]} 34... Kh6 {[%clk
0:00:36.6]} 35. Bxf3 {[%clk 0:00:11.1]} 35... Qf5 {[%clk 0:00:38.3]} 36. Be4
{[%clk 0:00:09.9]} 36... Qd7 {[%clk 0:00:37.9]} 37. Qf3 {[%clk 0:00:06.2]} 37...
Qg4 {[%clk 0:00:35.8]} 38. Qxg4 {[%clk 0:00:07.2]} 38... hxg4 {[%clk 0:00:36.5]}
39. Ne6 {[%clk 0:00:07.5]} 39... Rxf2+ {[%clk 0:00:36.8]} 40. Rg2 {[%clk
0:00:09.2]} 40... Rf1 {[%clk 0:00:30.8]} 41. Re2 {[%clk 0:00:07.7]} 41... Rg8
{[%clk 0:00:16.8]} 42. Kg2 {[%clk 0:00:08.3]} 42... Rf7 {[%clk 0:00:16.3]} 43.
Ng5 {[%clk 0:00:09.4]} 43... Rf6 {[%clk 0:00:17.1]} 44. Nh7 {[%clk 0:00:08.9]}
44... Rf3 {[%clk 0:00:15.7]} 45. Ng5 {[%clk 0:00:10.2]} 45... Rxg3+ {[%clk
0:00:16.9]} 46. Kf2 {[%clk 0:00:10.5]} 46... Rf8+ {[%clk 0:00:18.4]} 47. Ke1
{[%clk 0:00:11.7]} 47... Rg1+ {[%clk 0:00:19.8]} 48. Kd2 {[%clk 0:00:13.1]}
48... g3 {[%clk 0:00:21.4]} 49. Ne6 {[%clk 0:00:12.8]} 49... Rf2 {[%clk
0:00:21.6]} 50. Ng5 {[%clk 0:00:11.2]} 50... Bc3+ {[%clk 0:00:21.2]} 51. Kd3
{[%clk 0:00:11.5]} 51... Rd1+ {[%clk 0:00:22]} 52. Ke3 {[%clk 0:00:13.1]} 52...
Bd4# {[%clk 0:00:23]} 0-1

[Event "*** Titled Tuesday 3|2 Blitz (Late)"]
[Site "Chess.com"]
[Date "2016.11.01"]
[Round "4"]
[White "micfel"]
[Black "dretch"]
[Result "0-1"]
[WhiteElo "2283"]
[BlackElo "2627"]
[TimeControl "180+2"]
[EndTime "17:53:41 PDT"]
[Termination "dretch won on time"]

1. e4 {[%clk 0:02:59.9]} 1... e6 {[%clk 0:03:00.8]} 2. d4 {[%clk 0:03:00.6]}
2... d5 {[%clk 0:03:01.3]} 3. Nd2 {[%clk 0:03:01.3]} 3... c5 {[%clk 0:03:01.8]}
4. dxc5 {[%clk 0:03:01.5]} 4... Bxc5 {[%clk 0:03:02.4]} 5. Bd3 {[%clk
0:03:02.1]} 5... Nf6 {[%clk 0:03:02.1]} 6. Qe2 {[%clk 0:03:03]} 6... Nc6 {[%clk
0:03:00.1]} 7. c3 {[%clk 0:03:03.5]} 7... O-O {[%clk 0:02:49.1]} 8. e5 {[%clk
0:03:02.6]} 8... Nxe5 {[%clk 0:02:43.3]} 9. Qxe5 {[%clk 0:02:57.5]} 9... Bxf2+
{[%clk 0:02:43.6]} 10. Kf1 {[%clk 0:02:48.2]} 10... Bb6 {[%clk 0:02:39.1]} 11.
Ndf3 {[%clk 0:02:45.2]} 11... Bc7 {[%clk 0:02:28.7]} 12. Qg5 {[%clk 0:02:42.7]}
12... Qd6 {[%clk 0:02:29]} 13. Qh4 {[%clk 0:02:33]} 13... e5 {[%clk 0:02:29.9]}
14. Bc2 {[%clk 0:02:29.5]} 14... e4 {[%clk 0:02:02.8]} 15. Nd4 {[%clk 0:02:30]}
15... Ng4 {[%clk 0:02:03.4]} 16. h3 {[%clk 0:02:21.1]} 16... Bd8 {[%clk
0:01:56.3]} 17. Bg5 {[%clk 0:02:06.5]} 17... Ne3+ {[%clk 0:01:16.7]} 18. Kf2
{[%clk 0:01:57.6]} 18... Nxg2 {[%clk 0:01:04.6]} 19. Kxg2 {[%clk 0:01:50.9]}
19... Qg6 {[%clk 0:01:04]} 20. Nge2 {[%clk 0:01:45.7]} 20... Bxg5 {[%clk
0:00:58]} 21. Qg3 {[%clk 0:01:46.3]} 21... Qh6 {[%clk 0:00:55.4]} 22. h4 {[%clk
0:01:38.6]} 22... Be7 {[%clk 0:00:56.5]} 23. Bb3 {[%clk 0:01:30.6]} 23... Be6
{[%clk 0:00:49.2]} 24. Qf4 {[%clk 0:01:29.3]} 24... Qg6+ {[%clk 0:00:46.8]} 25.
Kf1 {[%clk 0:01:28.8]} 25... h5 {[%clk 0:00:30.1]} 26. Rg1 {[%clk 0:01:26]}
26... Bh3+ {[%clk 0:00:28.3]} 27. Kf2 {[%clk 0:01:24.4]} 27... Bg4 {[%clk
0:00:30.1]} 28. Rh1 {[%clk 0:01:09.1]} 28... Rad8 {[%clk 0:00:25.1]} 29. Rag1
{[%clk 0:01:07.9]} 29... f5 {[%clk 0:00:21.6]} 30. Ke1 {[%clk 0:01:06.5]} 30...
Kh7 {[%clk 0:00:18.9]} 31. Qe3 {[%clk 0:01:00]} 31... Qb6 {[%clk 0:00:14.8]} 32.
Nf4 {[%clk 0:00:56.3]} 32... Bc5 {[%clk 0:00:16.2]} 33. Kd2 {[%clk 0:00:47.1]}
33... a5 {[%clk 0:00:13.3]} 34. Kc2 {[%clk 0:00:40.1]} 34... Rc8 {[%clk
0:00:11.5]} 35. Kb1 {[%clk 0:00:38.3]} 35... a4 {[%clk 0:00:05.3]} 36. Bxa4
{[%clk 0:00:38.3]} 36... Qd6 {[%clk 0:00:03.1]} 37. Bb3 {[%clk 0:00:36.6]} 37...
Rcd8 {[%clk 0:00:04.2]} 38. Nxd5 {[%clk 0:00:22.1]} 38... Qe5 {[%clk 0:00:04.4]}
39. Nf4 {[%clk 0:00:18.9]} 39... Rxd4 {[%clk 0:00:04.8]} 40. cxd4 {[%clk
0:00:18.6]} 40... Bxd4 {[%clk 0:00:06.7]} 41. Qc1 {[%clk 0:00:17.3]} 41... Bxg1
{[%clk 0:00:05.2]} 42. Rxg1 {[%clk 0:00:18]} 42... e3 {[%clk 0:00:07.1]} 43. Nd3
{[%clk 0:00:10.6]} 43... Qe4 {[%clk 0:00:06.6]} 44. Bc2 {[%clk 0:00:11.3]} 44...
Rc8 {[%clk 0:00:07]} 45. Qe1 {[%clk 0:00:03.6]} 45... f4 {[%clk 0:00:06.5]} 0-1